Cogmind - Beta 9.1 @@@ ROGUE MODE // 2019.11.06 @ 11:52:12 Player: Pimski Result: Destroyed by 8R-AWN with 8R-AWN's Boregun Performance ------------- Evolutions (0) 0 Regions Visited (3) 600 Robots Destroyed (23) 115 Value Destroyed (393) 393 Prototype IDs (26) 520 Alien Tech Used (0) 0 Bonus (-304) -304 TOTAL SCORE: 1324 Bonus ------- Follower Combat Kills 25 Aligned with FarCom 300 Friendly Fire -629 Cogmind --------- Core Integrity 0/250 Matter 133/300 Energy 100/100 System Corruption 0% Temperature Cool (0) Location -10/Exiles Parts ------- Power (1) Propulsion (2) Light Treads Utility (2) High-capacity Storage Unit Weapon (2) Assault Rifle Light Assault Rifle Inventory (12) High-capacity Storage Unit Mini Grenade Launcher Peak State ------------ Power Ion Engine Propulsion Light Treads Improved Treads Utility High-capacity Storage Unit Cloak of Protection Weapon Assault Rifle Mini Grenade Launcher Inventory Light Treads Improved Treads Improved Treads High-capacity Storage Unit Assault Rifle Assault Rifle Assault Rifle Assault Rifle Light Assault Rifle [Rating: 17] Favorites ----------- Power Ion Engine Engine Ion Engine Propulsion Improved Treads Treads Improved Treads Leg Aluminum Leg Utility Small Storage Unit Device Shield Generator Storage Small Storage Unit Weapon Assault Rifle Ballistic Gun Assault Rifle Launcher Mini Grenade Launcher Build | -11 -10 -10 -10 ------- Run | Scr Mat Min Exi Slots Evolved . | . . . . Power . | . . . . Propulsion . | . . . . Utility . | . . . . Weapon . | . . . . Parts Attached 26 | . 9 5 12 Power 3 | . 1 2 . Engine 3 | . 1 2 . Core . | . . . . Reactor . | . . . . Propulsion 7 | . 4 . 3 Treads 7 | . 4 . 3 Leg . | . . . . Wheel . | . . . . Hover . | . . . . Flight . | . . . . Utility 6 | . 2 1 3 Device 2 | . 1 . 1 Storage 4 | . 1 1 2 Processor . | . . . . Hackware . | . . . . Protection . | . . . . Artifact . | . . . . Weapon 10 | . 2 2 6 Energy Gun . | . . . . Energy Cannon . | . . . . Ballistic Gun 9 | . 2 2 5 Ballistic Cannon . | . . . . Launcher 1 | . . . 1 Special Weapon . | . . . . Impact Weapon . | . . . . Slashing Weapon . | . . . . Piercing Weapon . | . . . . Special Melee Weapon . | . . . . Unidentified Prototypes . | . . . . Parts Lost 10 | . . . 10 Power 1 | . . . 1 Propulsion 4 | . . . 4 Utility 1 | . . . 1 Weapon 4 | . . . 4 Highest Loss Streak 6 | . . . 6 Average Slot Usage (%) 97 | . 94 100 96 Engine 13 | . 14 14 12 Treads 27 | . 27 28 27 Device 1 | . 7 . 1 Storage 24 | . 15 28 25 Ballistic Gun 27 | . 28 28 27 Naked Turns . | . . . . Heaviest Build 73 | 12 17 17 73 Greatest Support 46 | 20 46 43 43 Greatest Overweight (x) 1 | . . . 1 Average Overweight (x) . | . . . . Largest Inventory Capacity 20 | 6 8 8 20 Average Capacity 11 | 6 6 8 16 Most Carried 20 | 6 8 8 20 Average Carried 9 | 6 6 8 12 Final Capacity 12 | 6 8 8 12 Final Carried 8 | 6 8 8 2 Class Distribution -------------------- 70% | Mutant 29% | Hauler-Mutant Dominant Class ---------------- Mutant | -10/Materials Mutant | -10/Mines Hauler-Mutant | -10/Exiles Resources | -11 -10 -10 -10 ----------- Run | Scr Mat Min Exi Matter Collected 886 | 224 212 140 310 Remotely . | . . . . Salvage Created 767 | 87 392 264 24 Parts 30 | 1 19 10 . Haulers Intercepted 1 | . 1 . . Recyclers Shooed 4 | . 3 1 . Parts Field Recycled . | . . . . Retrieved Matter . | . . . . Parts Self-Destructed . | . . . . Prevented . | . . . . Kills | -11 -10 -10 -10 ------- Run | Scr Mat Min Exi Combat Hostiles Destroyed 14 | . 6 5 3 Guns 11 | . 6 5 . AOE 3 | . . . 3 Classes Destroyed 5 | 1 3 . 1 Hauler 1 | . 1 . . Recycler 4 | 1 2 1 . Swarmer 3 | . 3 . . Grunt 8 | . 3 5 . Assembled 7 | . . . 7 Best Kill Streak 3 | 1 3 2 3 Combat Bots Only 3 | . 3 2 3 Max Kills in Single Turn 4 | 1 1 1 4 Gunslinging . | . . . . Exploded 2 | . . . 2 Melee . | . . . . Uniques/NPCs Destroyed . | . . . . Combat | -11 -10 -10 -10 -------- Run | Scr Mat Min Exi Damage Taken 1922 | . 295 414 1213 Core 258 | . 11 106 141 Absorbed by Shields 89 | . 89 . . Core Remaining (%) 100 | 100 . . . Volleys Fired 100 | 6 33 15 46 Largest 2 | 2 2 2 2 Hottest 40 | 40 40 40 40 Shots Fired 196 | 12 66 30 88 Gun 192 | 12 66 30 84 Cannon . | . . . . Launcher 4 | . . . 4 Special . | . . . . Kinetic 192 | 12 66 30 84 Thermal . | . . . . Explosive 4 | . . . 4 Electromagnetic . | . . . . Robot Hit Streak 24 | 8 24 8 23 Robot Miss Streak 2 | 1 1 2 2 Penetration Max . | . . . . Secondary Targets . | . . . . Shots Hit Robots 155 | 9 51 21 74 Core Hits 54 | 2 19 8 25 Critical Hits 3 | . 2 . 1 Critical Kills . | . . . . Critical Parts Destroyed 2 | . 2 . . Melee Attacks . | . . . . Impact . | . . . . Slashing . | . . . . Piercing . | . . . . Sneak Attacks . | . . . . Combat Hostiles . | . . . . Follow-up Attacks . | . . . . Damage Inflicted 2294 | 82 570 310 1332 Guns 1789 | 82 555 299 853 Cannons . | . . . . Explosions 479 | . . . 479 Melee . | . . . . Ramming 26 | . 15 11 . Kinetic 1789 | 82 555 299 853 Thermal . | . . . . Explosive 479 | . . . 479 Electromagnetic . | . . . . Impact . | . . . . Slashing . | . . . . Piercing . | . . . . Highest Corruption . | . . . . Average Corruption . | . . . . Corruption Purged . | . . . . Overload Shots . | . . . . Overflow Damage 31 | . . . 31 Projectiles . | . . . . Explosions 31 | . . . 31 Melee . | . . . . Knockbacks . | . . . . Impact . | . . . . Kinetic . | . . . . Secondary . | . . . . Self-Inflicted Damage . | . . . . Shots . | . . . . Rammed 6 | . 5 1 . Targets Rammed 7 | . 5 2 . Kicked . | . . . . Crushed 1 | . . 1 . Highest Temperature 20 | . 12 20 . Average Temperature 7 | . 6 8 . Received Heat Transfer 357 | . 120 237 . Siege Activations . | . . . . Robots Corrupted . | . . . . Combat Hostiles . | . . . . Parts Fried . | . . . . Impact Corruptions . | . . . . Robots Melted . | . . . . Combat Hostiles . | . . . . Parts Melted . | . . . . Heat Transferred . | . . . . Parts Sabotaged . | . . . . Parts Stolen . | . . . . Parts Stripped . | . . . . Power Chain Reactions . | . . . . Missiles Intercepted . | . . . . Alert | -11 -10 -10 -10 ------- Run | Scr Mat Min Exi Peak Influence 219 | 5 219 161 . Average Influence 105 | 1 125 97 . Maximum Alert Level 1 | . 1 . . Low Security (%) 95 | . . . . Level 1 4 | . . . . Level 2 . | . . . . Level 3 . | . . . . Level 4 . | . . . . Level 5 . | . . . . High Security . | . . . . Max Security . | . . . . Squads Dispatched . | . . . . Investigation . | . . . . Extermination . | . . . . Reinforcement . | . . . . Assault . | . . . . Garrison . | . . . . Intercept . | . . . . Construction Impeded . | . . . . Haulers Reinforced . | . . . . Stealth | -11 -10 -10 -10 --------- Run | Scr Mat Min Exi Distress Signals . | . . . . Communications Jammed . | . . . . Distress Signals . | . . . . Times Spotted 20 | . 11 5 4 Peak Tracking Total 5 | . 5 2 5 Tactical Retreats 2 | . 2 . . Traps | -11 -10 -10 -10 ------- Run | Scr Mat Min Exi Traps Triggered 2 | . 2 . . Indirectly . | . . . . Trap Hack Attempts . | . . . . Triggered . | . . . . Disarmed . | . . . . Reprogrammed . | . . . . Reused . | . . . . Traps Extracted . | . . . . Installed . | . . . . Triggered . | . . . . Machines | -11 -10 -10 -10 ---------- Run | Scr Mat Min Exi Machines Disabled 3 | . . . 3 Max in Single Turn 1 | . . . 1 Machines Sabotaged . | . . . . Garrisons Compromised . | . . . . Overloaded Fab Kills . | . . . . Fab Network Shutdowns . | . . . . Hacking | -11 -10 -10 -10 --------- Run | Scr Mat Min Exi Machines Accessed 5 | . 3 . 2 Terminals 3 | . 3 . . Fabricators . | . . . . Repair Stations . | . . . . Recycling Units . | . . . . Scanalyzers . | . . . . Garrison Access . | . . . . Total Hacks 13 | . 11 . 2 Successful 9 | . 7 . 2 Failed 4 | . 4 . . Catastrophic . | . . . . Database Lockouts . | . . . . Manual 7 | . 6 . 1 Terminals 11 | . 11 . . Fabricators . | . . . . Repair Stations . | . . . . Recycling Units . | . . . . Scanalyzers . | . . . . Garrison Access . | . . . . Terminal Hacks 8 | . 6 . 2 Record 1 | . . . 1 Prototype ID Bank 2 | . 2 . . Branch Access Points 1 | . 1 . . Locate Traps 1 | . 1 . . Hauler Manifests 1 | . 1 . . Zone Layout 1 | . 1 . . EX-Prototype ID Bank 1 | . . . 1 Fabricator Hacks . | . . . . Repair Station Hacks . | . . . . Recycling Unit Hacks . | . . . . Scanalyzer . | . . . . Garrison Access Hacks . | . . . . Unauthorized Hacks 2 | . 2 . . Terminals 1 | . 1 . . Botnet 1 | . 1 . . Fabricators . | . . . . Repair Stations . | . . . . Recycling Units . | . . . . Scanalyzers . | . . . . Garrison Access . | . . . . Data Cores Recovered . | . . . . Used . | . . . . Hacking Detections 3 | . 3 . . Full Trace Events 1 | . 1 . . Feedback Events . | . . . . Feedback Blocked . | . . . . Robot Schematics Acquired . | . . . . Robots Built . | . . . . Matter . | . . . . Time . | . . . . Total Robot Build Rating . | . . . . Part Schematics Acquired . | . . . . Parts Built . | . . . . Matter . | . . . . Time . | . . . . Total Part Build Rating . | . . . . Parts Repaired . | . . . . Time . | . . . . Parts Recycled . | . . . . Recycled Matter . | . . . . Retrieved Matter . | . . . . Retrieved Components . | . . . . Parts Scanalyzed . | . . . . Part Schematics Acquired . | . . . . Parts Damaged . | . . . . Bothacking | -11 -10 -10 -10 ------------ Run | Scr Mat Min Exi Used RIF Installer . | . . . . Robots Hacked . | . . . . Non-combat . | . . . . Combat . | . . . . Robot Hacks Applied . | . . . . Relay Couplers Released . | . . . . Robots Rewired . | . . . . Allies Hacked . | . . . . Hacks Repelled . | . . . . Allies | -11 -10 -10 -10 -------- Run | Scr Mat Min Exi Total Allies 1 | . . 1 . Largest Group 1 | . . 1 . Highest-Rated Group 31 | . . 31 . Highest-Rated Ally 31 | . . 31 . Total Orders . | . . . . Ally Attacks 8 | . . 8 . Total Damage 124 | . . 124 . Kills 1 | . . 1 . Allies Corrupted . | . . . . Allies Melted . | . . . . Intel | -11 -10 -10 -10 ------- Run | Scr Mat Min Exi Robot Analysis Total . | . . . . Derelict Logs Recovered 1 | . . 1 . Drone Launches . | . . . . Drone Recoveries . | . . . . Exploration | -11 -10 -10 -10 ------------- Run | Scr Mat Min Exi Turns Passed 2042 | 22 385 707 928 Spaces Moved 976 | 5 152 394 425 Core . | . . . . Treads 967 | . 148 394 425 Legs 9 | 5 4 . . Wheels . | . . . . Hover . | . . . . Flight . | . . . . Fastest Speed 120 | 120 120 160 160 Average Speed 166 | 120 158 160 175 Slowest Speed 180 | 120 160 160 180 Overloaded Moves . | . . . . Propulsion Burnouts . | . . . . Robots Hopped . | . . . . Cave-ins Triggered . | . . . . Exploration Rate (%) 43 | 2 38 67 67 Regions Visited 3 Branch Regions 2 Pre-discovered Areas 1 | . . . 1 Known Exits Taken 1 | . 1 . . Unknown Exits Taken 2 | 1 . 1 . Scrap Searched 3 | . . 3 . Spaces Dug . | . . . . Terrain Destroyed 11 | . . . 11 Melee . | . . . . Projectile . | . . . . AOE 11 | . . . 11 Actions | -11 -10 -10 -10 --------- Run | Scr Mat Min Exi Total 1216 | 10 237 442 527 Wait 48 | . 17 22 9 Move 973 | 4 151 393 425 Hop . | . . . . Pick Up 26 | . 9 . 17 Fast Attach 7 | . 7 . . Attach 7 | . . . 7 Detach . | . . . . Swap 12 | . 2 5 5 Drop 36 | . 13 5 18 Fire 100 | 6 33 15 46 Melee . | . . . . Ram . | . . . . Kick . | . . . . Crush 7 | . 5 2 . Escape Stasis . | . . . . Rewire . | . . . . Trap . | . . . . Miscellaneous . | . . . . Route ------- -11/Scrapyard -10/Materials (discovered 3 exits: [Mat] / *Min x2) -10/Mines (discovered 2 exits: [*Mat] / *Exi) -10/Exiles (discovered 1 exit: [*Min]) History --------- Turn | Location | Event 15 | -11/Scrapyard | Discovered new exit (range 2) 23 | -11/Scrapyard | Entered Materials 152 | -10/Materials | Identified exit to Mines 305 | -10/Materials | Discovered new exit (range 19) 312 | -10/Materials | Build established: Mutant 408 | -10/Materials | Entered Mines 477 | -10/Mines | Learned Materials security intel 515 | -10/Mines | Discovered new exit (range 4) 521 | -10/Mines | Received a Mining Laser from a helpful Derelict 624 | -10/Mines | Deemed a non-threat by the Exiles lab entrance 624 | -10/Mines | Discovered new exit (range 5) 1115 | -10/Mines | Entered Exiles 1154 | -10/Exiles | Met 8R-AWN 1214 | -10/Exiles | Met EX-HEX 1316 | -10/Exiles | Met EX-DEC 1345 | -10/Exiles | Learned location of Zion (-6) 1538 | -10/Exiles | Met EX-BIN 1563 | -10/Exiles | Aligned with FarCom system 1565 | -10/Exiles | Given EX-Vault access code 1581 | -10/Exiles | Build established: Hauler-Mutant 1606 | -10/Exiles | Opened EX-Vault 1615 | -10/Exiles | Found Cloak of Protection 1620 | -10/Exiles | Found Latent Energy Streamer 1623 | -10/Exiles | Found PSU Rigger 1661 | -10/Exiles | Warned to stay clear of 0b10 Research branches 1778 | -10/Exiles | Discovered new exit (range 14) 1901 | -10/Exiles | Attacked by the Exiles 1959 | -10/Exiles | Core integrity fell below 50% 1983 | -10/Exiles | Lost 6 parts (1p2n1u2w) 1988 | -10/Exiles | Core integrity fell below 20% 2043 | -10/Exiles | Destroyed by 8R-AWN with 8R-AWN's Boregun Last Messages --------------- 02000_ Penetrated by HV Slug. 02000_ HV Slug penetrates Wall. 02000_ Penetrated by HV Slug. 02013_ HV Slug penetrates Wall. 02013_ Penetrated by HV Slug. 02017_ HV Slug penetrates Assembled Analyzer. 02021_ Penetrated by HV Slug. 02021_ Critical hit. 02021_ Assault Rifle destroyed. 02021_ Penetrated by HV Slug. 02026_ Assault Rifle destroyed. 02030_ Penetrated by HV Slug. 02030_ Critical hit. 02030_ Imp. Treads destroyed. 02030_ Penetrated by HV Slug. 02034_ Critical hit. 02034_ Imp. Treads destroyed. 02034_ Penetrated by HV Slug. 02038_ HV Slug penetrates Wall. 02038_ Penetrated by HV Slug. Map ----- +----------------------------------------------------+ | """#???????????????????????????????????? | | """#???????????????????????????????????? | | """#???????????????????????????????????? | | """#???????????????????????????????????? | | """"???????????????????????????????????? | | """#???????????????????????????????????? | | "X" """"???????????????????????????????????? | | """ #???????????????????????????????????? | | """""""""#???????????????????????????????????? | | ###########???????????????????????????????????? | | #?????????????????????????????????????????????? | | #?????????????????????????????????????????????? | | ##????????????????????????????????????????????? | | ##???###########?????????????????????????????? | | #####"""" """"##????????????????????????????? | | " """ """"##???????????????????????????? | | " " #???????????????????????????? | | " """#???????????????????????????? | | a"#???????????#####???????????? | | "##?????????##" #???????????? | | "###???????#" #???????????? | | " ""#??????##" ##??????????? | | """ "#????### ###????????# | | ####""" ###??# ########## | | ???##""" ;#?## #""""## | | ????#"""" @### | | ???##"" g ## | | ####"""" ! ! #### | | #""" ! ""#?#"""""#### | | "" #"""##?#######??#### | | ######??????????????### | | ##?????????????????????? | | " #??????????????????????? | | "" " ##??????????????????????? | | ##""" " " " ; #???????????????????????? | | ######""" """## ????????????????????????? | | #????###""""### # ##????????????????????????? | | ####???######??#######??????????????????????????? | | " #????????????????????????????????????????????? | | !#????????????????????????????????????????????? | | "#????????????????????????????????????????????? | | "" "#????????????????????????????????????????????? | | #####????????????????????????????????????????????? | | ?????????????????????????????????????????????????? | | ?????????????????????????????????????????????????? | | ?????????????????????????????????????????????????? | | ?????????????????????????????????????????????????? | | ?????????????????????????????????????????????????? | | ?????????????????????????????????????????????????? | | ?????????????????????????????????????????????????? | +----------------------------------------------------+ Best States ------------- Heat Dissipation 25 Energy Generation 10 Energy Capacity 250 Matter Stores 300 Matter Capacity 300 Sight Range 16 Terrain Scan Density 10 Evasion (%) 40 Recoil Reduction 2 Item Schematics ----------------- None Robot Schematics ------------------ None Fabricated ------------ Nothing Alien Tech Used ----------------- None Achievements -------------- None Challenges ------------ None Game ------ Seed BackupReinforcedCompressor Manual? 0 Play Time 00:14:57 Cumulative 596.1 hours Start 2019.11.06 @ 11:36:58 End 2019.11.06 @ 11:52:12 Sessions 1 Manual Loads 0 Difficulty Rogue Special Mode None Game No. 379 Rogue 379 Adventurer 0 Explorer 0 Win Type - Total 99 Types 66/6/7/10/5/1/4 Lore% 96 Gallery% 94 Achievement% 80 Wizard Run 0 Options --------- ASCII 0 Keyboard 0 Movement Numpad Keybinds 0 Fullscreen 2 Font 18/SmallcapsGlow Map View 76x50 Tactical HUD 1 Map Filters NONE Filters NONE Steam 1 RUN: 1561f007-295d-485c-a74c-f475e914eaaf